[Event "Turkish Cup 2024"]
[Site "Denizli"]
[Date "2024.08.02"]
[Round "5"]
[White "Ilgaz, Yusuf Kerem"]
[Black "Sadik, Muhammed Selim"]
[Result "1/2-1/2"]
[ECO "B45"]
[WhiteElo "2006"]
[BlackElo "1798"]
[Annotator "RC"]
[PlyCount "129"]
[EventDate "2024.08.01"]
[EventType "swiss"]
[EventCountry "TUR"]
[SourceTitle "playchess.com"]
[Source "ChessBase"]
[SourceQuality "1"]
[TimeControl "5400+30"]

1. e4 {[%emt 0:03:00]} c5 {[%emt 0:01:00]} 2. Nf3 {[%emt 0:00:30]} e6 {[%emt 0:00:00]} 3. d4 {[%emt 0:00:00]} cxd4 {[%emt 0:00:00]} 4. Nxd4 {[%emt 0:00:00]} Nf6 {[%emt 0:00:30]} 5. Nc3 {[%emt 0:00:30]} Nc6 {[%emt 0:00:00]} 6. Nxc6 {[%emt 0:00:00]} bxc6 {[%emt 0:00:00]} 7. e5 {[%emt 0:00:00]} Nd5 {[%emt 0:00:30]} 8. Ne4 {[%emt 0:00:00]} Bb7 {[%emt 0:00:00]} 9. Be2 {[%emt 0:00:00]} c5 {[%emt 0:00:00]} 10. O-O {[%emt 0:00:30]} Qc7 {[%emt 0:00:00]} 11. Nd6+ {[%emt 0:00:30]} Bxd6 {[%emt 0:00:00]} 12. exd6 {[%emt 0:00:30]} Qc6 {[%emt 0:00:30]} 13. f3 {[%emt 0:00:30]} c4 {[%emt 0:00:30]} 14. Qd4 {[%emt 0:00:30]} O-O {[%emt 0:00:00]} 15. Qxc4 {[%emt 0:00:00]} Qxd6 {[%emt 0:00:00]} 16. Qd4 {[%emt 0:00:00]} Rfc8 {[%emt 0:00:00]} 17. c4 {[%emt 0:00:00]} Qb6 {[%emt 0:00:00]} 18. Qxb6 {[%emt 0:00:00]} Nxb6 {[%emt 0:00:00]} 19. b3 {[%emt 0:00:30]} Ba6 {[%emt 0:00:00]} 20. a4 {[%emt 0:38:30]} d5 {[%emt 0:01:30]} 21. a5 {[%emt 0:01:30]} Nd7 {[%emt 0:00:00]} 22. Be3 {[%emt 0:00:30]} dxc4 {[%emt 0:00:00]} 23. Rfc1 {[%emt 0:16:30]} Kf8 {[%emt 0:50:30]} 24. bxc4 {[%emt 0:01:30]} Rc7 {[%emt 0:01:30]} 25. f4 {[%emt 0:08:30]} Rac8 {[%emt 0:00:30]} 26. g3 {[%emt 0:01:30]} Nf6 {[%emt 0:08:30]} 27. Rd1 {[%emt 0:04:30]} Nd5 {[%emt 0:01:30]} 28. Bd4 {[%emt 0:01:30]} f6 {[%emt 0:04:30]} 29. Rd2 {[%emt 0:04:24]} Bxc4 {[%emt 0:04:30]} 30. Bxc4 {[%emt 0:00:37]} Rxc4 {[%emt 0:00:30]} 31. Bxa7 {[%emt 0:00:23]} Rc1+ {[%emt 0:00:00]} 32. Rd1 {[%emt 0:00:24]} Rxd1+ {[%emt 0:00:00]} 33. Rxd1 {[%emt 0:00:07]} Ra8 {[%emt 0:00:30]} 34. Bc5+ {[%emt 0:00:38]} Ke8 {[%emt 0:00:30]} 35. Ra1 {[%emt 0:00:39]} Ra6 {[%emt 0:02:30]} 36. Bf2 {[%emt 0:01:56]} Kd7 {[%emt 0:00:30]} 37. Be1 {[%emt 0:00:11]} Ne3 {[%emt 0:09:25]} 38. Rb1 {[%emt 0:01:02]} Kc7 {[%emt 0:02:10]} 39. Rb5 {[%emt 0:02:06]} Nc4 {[%emt 0:01:10]} 40. Bb4 {[%emt 0:01:50]} Nd6 {[%emt 0:02:48]} 41. Rh5 {[%emt 0:00:39]} h6 {[%emt 0:00:07]} 42. Rc5+ {[%emt 0:00:09]} Rc6 {[%emt 0:00:23]} 43. a6 {[%emt 0:08:16]} Rxc5 {[%emt 0:00:19]} 44. Bxc5 {[%emt 0:00:00]} Ne4 {[%emt 0:00:48]} 45. Bd4 {[%emt 0:01:32]} g5 {[%emt 0:00:29]} 46. Kf1 {[%emt 0:02:37]} h5 {[%emt 0:03:07]} 47. fxg5 {[%emt 0:01:22]} fxg5 {[%emt 0:00:14]} 48. Ke2 {[%emt 0:00:31]} g4 {[%emt 0:00:42]} 49. Be3 {[%emt 0:00:54]} Kc6 {[%emt 0:02:10]} 50. Kd3 {[%emt 0:00:43]} Nd6 {[%emt 0:00:09]} 51. Bf2 {[%emt 0:00:27]} e5 {[%emt 0:02:49]} 52. a7 {[%emt 0:01:42]} Kb7 {[%emt 0:00:30]} 53. Bc5 {[%emt 0:00:00]} Nf7 {[%emt 0:01:11]} 54. Be3 {[%emt 0:02:06]} Nd6 {[%emt 0:00:12]} 55. Bf2 {[%emt 0:00:32]} Ka8 {[%emt 0:00:26]} 56. Bg1 {[%emt 0:00:36]} Kb7 {[%emt 0:00:30]} 57. Bc5 {[%emt 0:00:28]} Nf7 {[%emt 0:00:28]} 58. Ke3 {[%emt 0:00:34]} Ng5 {[%emt 0:00:24]} 59. Bd6 {[%emt 0:00:25]} Kxa7 {[%emt 0:01:13]} 60. Bxe5 {[%emt 0:00:51]} Nf3 {[%emt 0:00:06]} 61. Bd4+ {[%emt 0:00:17]} Kb7 {[%emt 0:00:02]} 62. h4 {[%emt 0:00:07]} Kc6 {[%emt 0:00:29]} 63. Bf6 {[%emt 0:00:37]} Kd5 {[%emt 0:00:09]} 64. Kf4 {[%emt 0:00:30]} Ke6 {[%emt 0:00:02]} 65. Ke4 {[%emt 0:00:35]} 1/2-1/2

[Event "Turkish Cup 2024"]
[Site "Denizli"]
[Date "2024.08.02"]
[Round "5"]
[White "Akkara, Omer"]
[Black "Yilmaz, Turhan"]
[Result "1-0"]
[ECO "C47"]
[WhiteElo "1998"]
[BlackElo "2015"]
[Annotator "RC"]
[PlyCount "71"]
[EventDate "2024.08.01"]
[EventType "swiss"]
[EventCountry "TUR"]
[SourceTitle "playchess.com"]
[Source "ChessBase"]
[SourceQuality "1"]
[TimeControl "5400+30"]

1. e4 {[%emt 0:01:00]} e5 {[%emt 0:04:00]} 2. Nf3 {[%emt 0:00:30]} Nc6 {[%emt 0:00:30]} 3. Nc3 {[%emt 0:00:30]} Nf6 {[%emt 0:00:30]} 4. a3 {[%emt 0:00:00]} d5 {[%emt 0:01:30]} 5. Bb5 {[%emt 0:00:00]} d4 {[%emt 0:00:30]} 6. Ne2 {[%emt 0:00:00]} Bd6 {[%emt 0:00:30]} 7. d3 {[%emt 0:00:00]} O-O {[%emt 0:00:30]} 8. c3 {[%emt 0:00:30]} dxc3 {[%emt 0:00:30]} 9. bxc3 {[%emt 0:00:00]} Ne7 {[%emt 0:00:30]} 10. O-O {[%emt 0:01:00]} Ng6 {[%emt 0:00:00]} 11. Ng3 {[%emt 0:01:30]} Be6 {[%emt 0:02:00]} 12. Bg5 {[%emt 0:22:30]} h6 {[%emt 0:00:30]} 13. Bxf6 {[%emt 0:01:30]} Qxf6 {[%emt 0:00:30]} 14. d4 {[%emt 0:01:30]} c6 {[%emt 0:00:30]} 15. Nh5 {[%emt 0:05:30]} Qe7 {[%emt 0:00:30]} 16. Be2 {[%emt 0:00:30]} Rfd8 {[%emt 0:03:30]} 17. Qc2 {[%emt 0:03:30]} Bxa3 {[%emt 0:05:30]} 18. Nxe5 {[%emt 0:02:30]} Nxe5 {[%emt 0:00:30]} 19. dxe5 {[%emt 0:00:00]} Bc5 {[%emt 0:00:30]} 20. Kh1 {[%emt 0:00:00]} a5 {[%emt 0:00:00]} 21. f4 {[%emt 0:00:30]} a4 {[%emt 0:00:00]} 22. Rxa4 {[%emt 0:04:30]} Rxa4 {[%emt 0:00:30]} 23. Qxa4 {[%emt 0:00:30]} Rd2 {[%emt 0:00:00]} 24. f5 {[%emt 0:10:30]} Bc8 {[%emt 0:08:00]} 25. Qa8 {[%emt 0:08:30]} Rd8 {[%emt 0:05:30]} 26. Rd1 {[%emt 0:04:30]} Re8 {[%emt 0:06:30]} 27. Nxg7 {[%emt 0:10:30]} Rf8 {[%emt 0:00:30]} 28. Nh5 {[%emt 0:05:16]} Bxf5 {[%emt 0:09:30]} 29. Qa2 {[%emt 0:00:20]} Be6 {[%emt 0:10:30]} 30. Qd2 {[%emt 0:00:44]} Kh7 {[%emt 0:00:30]} 31. Nf6+ {[%emt 0:00:30]} Kg7 {[%emt 0:06:30]} 32. Qf4 {[%emt 0:02:58]} Rd8 {[%emt 0:06:30]} 33. Rf1 {[%emt 0:01:46]} Rh8 {[%emt 0:01:30]} 34. Rf3 {[%emt 0:00:49]} Qd8 {[%emt 0:01:30]} 35. Rd3 {[%emt 0:00:40]} Qe7 {[%emt 0:03:30]} 36. Rg3+ {[%emt 0:00:04]} 1-0

[Event "Turkish Cup 2024"]
[Site "Denizli"]
[Date "2024.08.02"]
[Round "5"]
[White "Sahin, Ata Sarp"]
[Black "Akbas, Kaan"]
[Result "0-1"]
[ECO "B03"]
[WhiteElo "1996"]
[BlackElo "1990"]
[Annotator "RC"]
[PlyCount "88"]
[EventDate "2024.08.01"]
[EventType "swiss"]
[EventCountry "TUR"]
[SourceTitle "playchess.com"]
[Source "ChessBase"]
[SourceQuality "1"]
[TimeControl "5400+30"]

1. e4 {[%emt 0:02:00]} Nf6 {[%emt 0:01:00]} 2. e5 {[%emt 0:00:00]} Nd5 {[%emt 0:00:00]} 3. d4 {[%emt 0:00:00]} d6 {[%emt 0:00:00]} 4. c4 {[%emt 0:00:30]} Nb6 {[%emt 0:00:00]} 5. f4 {[%emt 0:00:30]} dxe5 {[%emt 0:00:00]} 6. fxe5 {[%emt 0:00:30]} Bf5 {[%emt 0:00:00]} 7. Be3 {[%emt 0:00:00]} Nc6 {[%emt 0:00:00]} 8. Nc3 {[%emt 0:00:00]} e6 {[%emt 0:00:30]} 9. Be2 {[%emt 0:01:30]} Be7 {[%emt 0:00:00]} 10. Nf3 {[%emt 0:02:30]} O-O {[%emt 0:00:00]} 11. O-O {[%emt 0:03:30]} f6 {[%emt 0:00:30]} 12. Qe1 {[%emt 0:05:30]} Nb4 {[%emt 0:02:30]} 13. Rd1 {[%emt 0:03:30]} Nc2 {[%emt 0:03:30]} 14. Qf2 {[%emt 0:00:00]} Nxe3 {[%emt 0:03:30]} 15. Qxe3 {[%emt 0:00:00]} Qe8 {[%emt 0:06:30]} 16. Nb5 {[%emt 0:02:30]} Qc6 {[%emt 0:03:30]} 17. b3 {[%emt 0:01:30]} a6 {[%emt 0:01:30]} 18. Nc3 {[%emt 0:00:00]} Nd7 {[%emt 0:09:30]} 19. exf6 {[%emt 0:08:00]} Bxf6 {[%emt 0:00:30]} 20. Bd3 {[%emt 0:02:30]} Rae8 {[%emt 0:15:30]} 21. Ne4 {[%emt 0:18:30]} Be7 {[%emt 0:08:30]} 22. Kh1 {[%emt 0:10:30]} h6 {[%emt 0:01:30]} 23. Ng3 {[%emt 0:01:30]} Bxd3 {[%emt 0:02:30]} 24. Qxd3 {[%emt 0:03:30]} Bd6 {[%emt 0:01:30]} 25. Qg6 {[%emt 0:00:30]} Bxg3 {[%emt 0:10:30]} 26. Qxg3 {[%emt 0:00:30]} Qd6 {[%emt 0:00:00]} 27. Qh3 {[%emt 0:02:30]} Rf5 {[%emt 0:03:00]} 28. d5 {[%emt 0:01:30]} Ref8 {[%emt 0:00:30]} 29. dxe6 {[%emt 0:02:30]} Qxe6 {[%emt 0:00:30]} 30. Qg3 {[%emt 0:00:30]} Rf4 {[%emt 0:00:30]} 31. Rfe1 {[%emt 0:02:30]} Qf7 {[%emt 0:06:30]} 32. h3 {[%emt 0:00:30]} Nc5 {[%emt 0:00:30]} 33. Ne5 {[%emt 0:00:30]} Qh5 {[%emt 0:03:05]} 34. Qg6 {[%emt 0:16:12]} Qh4 {[%emt 0:01:17]} 35. b4 {[%emt 0:01:15]} Ne4 {[%emt 0:06:28]} 36. Qe6+ {[%emt 0:01:37]} Kh7 {[%emt 0:00:02]} 37. Ng6 {[%emt 0:00:00]} R8f6 {[%emt 0:01:17]} 38. Qxe4 {[%emt 0:04:45]} Rf1+ {[%emt 0:01:56]} 39. Kh2 {[%emt 0:00:24]} Qxe4 {[%emt 0:00:30]} 40. Rxe4 {[%emt 0:00:30]} Rxd1 {[%emt 0:00:00]} 41. Nf4 {[%emt 0:00:00]} Rd2 {[%emt 0:00:32]} 42. a4 {[%emt 0:00:14]} Rfd6 {[%emt 0:00:18]} 43. Ne6 {[%emt 0:00:48]} Kg8 {[%emt 0:01:26]} 44. Nxc7 {[%emt 0:03:23]} Rg6 {[%emt 0:00:27]} 0-1

[Event "Turkish Cup 2024"]
[Site "Denizli"]
[Date "2024.08.02"]
[Round "5"]
[White "Ekinci, Berkay"]
[Black "Celebi, Mehmet Alper"]
[Result "1/2-1/2"]
[ECO "D10"]
[WhiteElo "1976"]
[BlackElo "1998"]
[Annotator "RC"]
[PlyCount "88"]
[EventDate "2024.08.01"]
[EventType "swiss"]
[EventCountry "TUR"]
[SourceTitle "playchess.com"]
[Source "ChessBase"]
[SourceQuality "1"]
[TimeControl "5400+30"]

1. d4 {[%emt 0:04:00]} d5 {[%emt 0:01:00]} 2. c4 {[%emt 0:00:30]} c6 {[%emt 0:00:30]} 3. cxd5 {[%emt 0:00:30]} cxd5 {[%emt 0:00:30]} 4. Nc3 {[%emt 0:00:30]} Nf6 {[%emt 0:00:30]} 5. Bf4 {[%emt 0:00:30]} a6 {[%emt 0:00:00]} 6. e3 {[%emt 0:00:00]} Nc6 {[%emt 0:00:00]} 7. Bd3 {[%emt 0:01:00]} Bg4 {[%emt 0:00:30]} 8. Nge2 {[%emt 0:00:30]} e6 {[%emt 0:00:30]} 9. f3 {[%emt 0:03:30]} Bh5 {[%emt 0:00:30]} 10. Rc1 {[%emt 0:00:30]} Bd6 {[%emt 0:02:30]} 11. O-O {[%emt 0:05:30]} O-O {[%emt 0:05:30]} 12. Na4 {[%emt 0:00:30]} Bg6 {[%emt 0:04:30]} 13. Bxg6 {[%emt 0:07:30]} hxg6 {[%emt 0:00:30]} 14. Bxd6 {[%emt 0:04:30]} Qxd6 {[%emt 0:00:30]} 15. Nc5 {[%emt 0:03:30]} b6 {[%emt 0:01:30]} 16. Nd3 {[%emt 0:01:30]} Rfc8 {[%emt 0:02:30]} 17. Qd2 {[%emt 0:04:30]} Rc7 {[%emt 0:02:30]} 18. Rc3 {[%emt 0:06:30]} Rac8 {[%emt 0:00:30]} 19. Rfc1 {[%emt 0:00:00]} Na5 {[%emt 0:01:30]} 20. b3 {[%emt 0:01:00]} Rxc3 {[%emt 0:01:30]} 21. Rxc3 {[%emt 0:03:30]} Rxc3 {[%emt 0:01:30]} 22. Qxc3 {[%emt 0:01:30]} Nc6 {[%emt 0:14:30]} 23. Ne5 {[%emt 0:03:30]} Ne7 {[%emt 0:00:30]} 24. Qd3 {[%emt 0:12:30]} Qa3 {[%emt 0:01:30]} 25. Qc2 {[%emt 0:02:30]} Qd6 {[%emt 0:00:00]} 26. Nf4 {[%emt 0:01:30]} Nd7 {[%emt 0:01:00]} 27. Nfd3 {[%emt 0:01:30]} Nxe5 {[%emt 0:02:30]} 28. Nxe5 {[%emt 0:01:30]} g5 {[%emt 0:01:30]} 29. h3 {[%emt 0:05:30]} f6 {[%emt 0:01:30]} 30. Ng6 {[%emt 0:01:30]} Nxg6 {[%emt 0:02:30]} 31. Qxg6 {[%emt 0:00:30]} Qc6 {[%emt 0:00:00]} 32. Kf2 {[%emt 0:02:30]} Kf8 {[%emt 0:02:00]} 33. Qd3 {[%emt 0:02:30]} b5 {[%emt 0:01:30]} 34. Qd2 {[%emt 0:02:25]} Ke7 {[%emt 0:03:30]} 35. Qb4+ {[%emt 0:00:22]} Kf7 {[%emt 0:00:30]} 36. Qd2 {[%emt 0:01:58]} Ke7 {[%emt 0:00:30]} 37. Qa5 {[%emt 0:00:30]} f5 {[%emt 0:00:30]} 38. Qb4+ {[%emt 0:02:59]} Kf7 {[%emt 0:03:30]} 39. Qd2 {[%emt 0:01:06]} Kf6 {[%emt 0:00:00]} 40. f4 {[%emt 0:01:03]} Qd6 {[%emt 0:02:00]} 41. g3 {[%emt 0:01:25]} gxf4 {[%emt 0:01:30]} 42. exf4 {[%emt 0:00:46]} Qc7 {[%emt 0:00:30]} 43. Kf3 {[%emt 0:05:31]} a5 {[%emt 0:01:30]} 44. Kf2 {[%emt 0:01:36]} b4 {[%emt 0:00:30]} 1/2-1/2

[Event "Turkish Cup 2024"]
[Site "Denizli"]
[Date "2024.08.02"]
[Round "5"]
[White "Bulgurlu, Okan"]
[Black "Bektas, Cagan Erdem"]
[Result "1-0"]
[ECO "B20"]
[WhiteElo "1964"]
[BlackElo "1847"]
[Annotator "RC"]
[PlyCount "63"]
[EventDate "2024.08.01"]
[EventType "swiss"]
[EventCountry "TUR"]
[SourceTitle "playchess.com"]
[Source "ChessBase"]
[SourceQuality "1"]
[TimeControl "5400+30"]

1. e4 {[%emt 0:05:00]} c5 {[%emt 0:02:00]} 2. b3 {[%emt 0:00:30]} g6 {[%emt 0:00:30]} 3. Bb2 {[%emt 0:00:30]} Nf6 {[%emt 0:00:00]} 4. e5 {[%emt 0:00:00]} Nd5 {[%emt 0:00:00]} 5. Qf3 {[%emt 0:00:00]} Nb4 {[%emt 0:00:30]} 6. Bc4 {[%emt 0:00:30]} e6 {[%emt 0:04:30]} 7. Na3 {[%emt 0:00:30]} a6 {[%emt 0:00:30]} 8. O-O-O {[%emt 0:04:30]} Ra7 {[%emt 0:30:30]} 9. h4 {[%emt 0:40:30]} b5 {[%emt 0:11:30]} 10. Be2 {[%emt 0:00:00]} h6 {[%emt 0:27:59]} 11. c3 {[%emt 0:11:00]} N4c6 {[%emt 0:03:18]} 12. Qe3 {[%emt 0:04:30]} c4 {[%emt 0:04:56]} 13. Nc2 {[%emt 0:03:30]} cxb3 {[%emt 0:03:21]} 14. axb3 {[%emt 0:00:30]} Rc7 {[%emt 0:03:35]} 15. f4 {[%emt 0:01:30]} Be7 {[%emt 0:01:23]} 16. h5 {[%emt 0:04:30]} g5 {[%emt 0:00:03]} 17. Nh3 {[%emt 0:00:30]} g4 {[%emt 0:01:54]} 18. Nf2 {[%emt 0:01:30]} Na5 {[%emt 0:00:01]} 19. Nd4 {[%emt 0:00:30]} Bc5 {[%emt 0:01:13]} 20. Kc2 {[%emt 0:00:30]} Nbc6 {[%emt 0:01:12]} 21. Kb1 {[%emt 0:00:30]} Nxb3 {[%emt 0:00:20]} 22. Nxg4 {[%emt 0:00:30]} Nbxd4 {[%emt 0:00:34]} 23. Nf6+ {[%emt 0:00:30]} Kf8 {[%emt 0:00:45]} 24. cxd4 {[%emt 0:00:30]} Bb6 {[%emt 0:00:41]} 25. Qe4 {[%emt 0:02:16]} Bb7 {[%emt 0:00:36]} 26. Qd3 {[%emt 0:02:23]} b4 {[%emt 0:01:06]} 27. d5 {[%emt 0:00:33]} Na5 {[%emt 0:00:29]} 28. dxe6 {[%emt 0:01:50]} Bc6 {[%emt 0:00:23]} 29. Nh7+ {[%emt 0:02:19]} Ke8 {[%emt 0:00:36]} 30. exf7+ {[%emt 0:00:09]} Kxf7 {[%emt 0:00:32]} 31. Qg6+ {[%emt 0:00:06]} Ke7 {[%emt 0:00:30]} 32. Qf6+ {[%emt 0:00:05]} 1-0

[Event "Turkish Cup 2024"]
[Site "Denizli"]
[Date "2024.08.02"]
[Round "5"]
[White "Yildiz, Talat"]
[Black "Orak, Yunus"]
[Result "1-0"]
[ECO "C47"]
[WhiteElo "1956"]
[BlackElo "1779"]
[Annotator "RC"]
[PlyCount "77"]
[EventDate "2024.08.01"]
[EventType "swiss"]
[EventCountry "TUR"]
[SourceTitle "playchess.com"]
[Source "ChessBase"]
[SourceQuality "1"]
[TimeControl "5400+30"]

1. e4 {[%emt 0:03:00]} e5 {[%emt 0:01:00]} 2. Nf3 {[%emt 0:00:00]} Nc6 {[%emt 0:00:00]} 3. Nc3 {[%emt 0:00:00]} Nf6 {[%emt 0:01:00]} 4. d4 {[%emt 0:00:30]} exd4 {[%emt 0:00:30]} 5. Nxd4 {[%emt 0:00:00]} Bb4 {[%emt 0:00:30]} 6. Nxc6 {[%emt 0:00:00]} bxc6 {[%emt 0:03:30]} 7. Bd3 {[%emt 0:00:30]} d5 {[%emt 0:04:30]} 8. exd5 {[%emt 0:00:30]} cxd5 {[%emt 0:00:30]} 9. O-O {[%emt 0:00:00]} O-O {[%emt 0:00:30]} 10. Bg5 {[%emt 0:00:00]} c6 {[%emt 0:01:30]} 11. Qf3 {[%emt 0:01:30]} Be7 {[%emt 0:03:30]} 12. h3 {[%emt 0:00:30]} Rb8 {[%emt 0:02:30]} 13. b3 {[%emt 0:01:30]} h6 {[%emt 0:05:30]} 14. Bf4 {[%emt 0:01:30]} Bd6 {[%emt 0:01:30]} 15. Ne2 {[%emt 0:03:30]} c5 {[%emt 0:06:30]} 16. Rad1 {[%emt 0:14:30]} Bb7 {[%emt 0:05:30]} 17. Bxd6 {[%emt 0:04:30]} Qxd6 {[%emt 0:00:30]} 18. Qg3 {[%emt 0:00:00]} Qc6 {[%emt 0:04:30]} 19. Nf4 {[%emt 0:12:00]} Rfe8 {[%emt 0:03:30]} 20. Rfe1 {[%emt 0:03:30]} Kf8 {[%emt 0:08:30]} 21. h4 {[%emt 0:04:30]} Kg8 {[%emt 0:01:30]} 22. Bf5 {[%emt 0:14:30]} d4 {[%emt 0:08:30]} 23. f3 {[%emt 0:05:30]} a5 {[%emt 0:06:30]} 24. Bd3 {[%emt 0:02:30]} Qd6 {[%emt 0:03:30]} 25. Kh2 {[%emt 0:10:05]} Bd5 {[%emt 0:02:30]} 26. a4 {[%emt 0:01:50]} Rbd8 {[%emt 0:08:57]} 27. Bb5 {[%emt 0:01:30]} Bc6 {[%emt 0:04:35]} 28. Bc4 {[%emt 0:00:31]} Rxe1 {[%emt 0:00:30]} 29. Rxe1 {[%emt 0:00:00]} Re8 {[%emt 0:00:00]} 30. Rxe8+ {[%emt 0:01:24]} Bxe8 {[%emt 0:00:02]} 31. Nd3 {[%emt 0:01:51]} Qd8 {[%emt 0:05:06]} 32. Kg1 {[%emt 0:06:48]} Nd7 {[%emt 0:02:00]} 33. Qe1 {[%emt 0:00:30]} Kf8 {[%emt 0:00:55]} 34. Bb5 {[%emt 0:00:07]} Qc7 {[%emt 0:03:14]} 35. Kf2 {[%emt 0:05:19]} f6 {[%emt 0:00:17]} 36. Qe4 {[%emt 0:02:22]} Qd6 {[%emt 0:03:56]} 37. Qh7 {[%emt 0:00:47]} Qe6 {[%emt 0:00:34]} 38. Qh8+ {[%emt 0:00:27]} Kf7 {[%emt 0:00:30]} 39. Bc4 {[%emt 0:00:09]} 1-0

[Event "Turkish Cup 2024"]
[Site "Denizli"]
[Date "2024.08.02"]
[Round "5"]
[White "Celik, Ege Yigit"]
[Black "Tutmaz, Bugra Hamza"]
[Result "1/2-1/2"]
[ECO "A26"]
[WhiteElo "1949"]
[BlackElo "1761"]
[Annotator "RC"]
[PlyCount "214"]
[EventDate "2024.08.01"]
[EventType "swiss"]
[EventCountry "TUR"]
[SourceTitle "playchess.com"]
[Source "ChessBase"]
[SourceQuality "1"]
[TimeControl "5400+30"]

1. c4 {[%emt 0:02:00]} Nf6 {[%emt 0:01:00]} 2. Nc3 {[%emt 0:00:00]} g6 {[%emt 0:00:30]} 3. g3 {[%emt 0:00:00]} Bg7 {[%emt 0:00:30]} 4. Bg2 {[%emt 0:00:30]} O-O {[%emt 0:00:00]} 5. e4 {[%emt 0:02:30]} d6 {[%emt 0:01:00]} 6. Nge2 {[%emt 0:00:30]} Nc6 {[%emt 0:00:30]} 7. O-O {[%emt 0:00:30]} e5 {[%emt 0:00:30]} 8. d3 {[%emt 0:00:30]} Bd7 {[%emt 0:02:30]} 9. h3 {[%emt 0:02:30]} Ne8 {[%emt 0:04:30]} 10. Rb1 {[%emt 0:02:30]} Nd4 {[%emt 0:01:30]} 11. b4 {[%emt 0:06:30]} Ne6 {[%emt 0:09:30]} 12. a4 {[%emt 0:18:30]} c6 {[%emt 0:04:30]} 13. a5 {[%emt 0:02:30]} a6 {[%emt 0:03:30]} 14. Bd2 {[%emt 0:05:30]} N8c7 {[%emt 0:05:30]} 15. Na4 {[%emt 0:05:30]} Rb8 {[%emt 0:00:30]} 16. Nac3 {[%emt 0:02:30]} Nd4 {[%emt 0:10:30]} 17. Nxd4 {[%emt 0:01:30]} exd4 {[%emt 0:00:30]} 18. Ne2 {[%emt 0:01:30]} Re8 {[%emt 0:04:30]} 19. g4 {[%emt 0:14:30]} Qe7 {[%emt 0:04:30]} 20. Ng3 {[%emt 0:02:30]} Qh4 {[%emt 0:05:30]} 21. Kh2 {[%emt 0:00:30]} Rbd8 22. f4 {[%emt 0:01:30]} Bc8 {[%emt 0:11:00]} 23. Qf3 {[%emt 0:07:30]} Qe7 {[%emt 0:00:30]} 24. g5 {[%emt 0:05:27]} f6 {[%emt 0:03:30]} 25. f5 {[%emt 0:01:13]} Rf8 {[%emt 0:01:30]} 26. h4 {[%emt 0:03:07]} fxg5 {[%emt 0:00:30]} 27. hxg5 {[%emt 0:00:22]} Be5 {[%emt 0:01:30]} 28. Kg1 {[%emt 0:04:11]} Bxg3 {[%emt 0:00:30]} 29. Qxg3 {[%emt 0:00:30]} gxf5 {[%emt 0:00:00]} 30. g6 {[%emt 0:00:00]} hxg6 {[%emt 0:02:00]} 31. Bg5 {[%emt 0:01:39]} Qe5 {[%emt 0:00:30]} 32. Qxe5 {[%emt 0:04:09]} dxe5 {[%emt 0:00:30]} 33. Bxd8 {[%emt 0:00:30]} Rxd8 {[%emt 0:00:00]} 34. exf5 {[%emt 0:00:00]} Bxf5 {[%emt 0:02:00]} 35. Rb3 {[%emt 0:01:47]} Kg7 {[%emt 0:00:30]} 36. Kh2 {[%emt 0:02:59]} Rb8 {[%emt 0:03:11]} 37. Kg3 {[%emt 0:00:33]} Ra8 {[%emt 0:02:15]} 38. Bf3 {[%emt 0:00:27]} Ne6 {[%emt 0:01:06]} 39. Bg4 {[%emt 0:00:30]} Nf4 {[%emt 0:00:12]} 40. Bxf5 {[%emt 0:00:44]} gxf5 {[%emt 0:00:30]} 41. Rxf4 {[%emt 0:00:30]} exf4+ {[%emt 0:00:30]} 42. Kxf4 {[%emt 0:00:30]} Kf6 {[%emt 0:00:00]} 43. Rb1 {[%emt 0:00:16]} Rg8 {[%emt 0:08:29]} 44. b5 {[%emt 0:00:28]} Rg4+ {[%emt 0:01:39]} 45. Kf3 {[%emt 0:00:01]} cxb5 {[%emt 0:01:31]} 46. cxb5 {[%emt 0:00:08]} Ke5 {[%emt 0:03:05]} 47. bxa6 {[%emt 0:01:18]} bxa6 {[%emt 0:00:01]} 48. Rb6 {[%emt 0:00:00]} Rg1 {[%emt 0:00:26]} 49. Rxa6 {[%emt 0:01:09]} Re1 {[%emt 0:01:19]} 50. Ra8 {[%emt 0:00:53]} Re3+ {[%emt 0:00:30]} 51. Kf2 {[%emt 0:00:00]} Rxd3 {[%emt 0:00:03]} 52. a6 {[%emt 0:00:27]} Ra3 {[%emt 0:00:06]} 53. a7 {[%emt 0:01:02]} Kf4 {[%emt 0:00:30]} 54. Rd8 {[%emt 0:00:00]} Ra2+ {[%emt 0:00:00]} 55. Kf1 {[%emt 0:00:38]} Rxa7 {[%emt 0:01:08]} 56. Rxd4+ {[%emt 0:00:02]} Ke3 {[%emt 0:00:20]} 57. Rb4 {[%emt 0:00:01]} Ra2 {[%emt 0:00:22]} 58. Rb3+ {[%emt 0:00:30]} Kf4 {[%emt 0:00:00]} 59. Rb4+ {[%emt 0:00:00]} Kg3 {[%emt 0:00:00]} 60. Rb3+ {[%emt 0:00:40]} Kg4 {[%emt 0:00:03]} 61. Rb8 {[%emt 0:01:40]} Rc2 {[%emt 0:00:44]} 62. Ra8 {[%emt 0:00:36]} Rb2 {[%emt 0:01:06]} 63. Rc8 {[%emt 0:00:22]} Kg3 {[%emt 0:00:17]} 64. Rc3+ {[%emt 0:00:10]} Kg4 {[%emt 0:00:48]} 65. Rc8 {[%emt 0:00:02]} Rb1+ {[%emt 0:00:21]} 66. Kf2 {[%emt 0:00:13]} Rb2+ {[%emt 0:00:09]} 67. Kf1 {[%emt 0:00:00]} Rb4 {[%emt 0:00:08]} 68. Ra8 {[%emt 0:01:23]} Kf4 {[%emt 0:00:12]} 69. Ra3 {[%emt 0:00:33]} Rb1+ {[%emt 0:00:06]} 70. Kf2 {[%emt 0:00:00]} Rb2+ {[%emt 0:00:30]} 71. Kf1 {[%emt 0:00:00]} Kg4 {[%emt 0:00:20]} 72. Ra8 {[%emt 0:00:00]} Rb3 {[%emt 0:00:00]} 73. Kf2 {[%emt 0:00:35]} Rf3+ {[%emt 0:00:00]} 74. Kg2 {[%emt 0:00:12]} Rb3 {[%emt 0:00:18]} 75. Kf2 {[%emt 0:00:38]} Rb2+ {[%emt 0:00:30]} 76. Kf1 {[%emt 0:00:00]} f4 {[%emt 0:00:21]} 77. Ra3 {[%emt 0:00:00]} Rc2 {[%emt 0:00:15]} 78. Rb3 {[%emt 0:00:18]} Kh4 {[%emt 0:00:45]} 79. Ra3 {[%emt 0:00:35]} Kg4 {[%emt 0:00:41]} 80. Rb3 {[%emt 0:00:30]} Rc1+ {[%emt 0:00:30]} 81. Kf2 {[%emt 0:00:00]} Rh1 {[%emt 0:00:00]} 82. Kg2 {[%emt 0:00:20]} Rd1 {[%emt 0:00:00]} 83. Kf2 {[%emt 0:00:13]} Rd4 {[%emt 0:00:09]} 84. Ra3 {[%emt 0:00:38]} Rb4 {[%emt 0:00:47]} 85. Rc3 {[%emt 0:00:00]} Rb2+ {[%emt 0:00:09]} 86. Kf1 {[%emt 0:00:20]} Kf5 {[%emt 0:00:00]} 87. Rc5+ {[%emt 0:00:55]} Ke4 {[%emt 0:00:00]} 88. Rc4+ {[%emt 0:00:15]} Ke3 {[%emt 0:00:20]} 89. Rc3+ {[%emt 0:00:00]} Kd4 {[%emt 0:00:00]} 90. Rf3 {[%emt 0:00:00]} Rb1+ {[%emt 0:00:38]} 91. Kf2 {[%emt 0:00:02]} Ke4 {[%emt 0:00:22]} 92. Ra3 {[%emt 0:00:09]} Rb2+ {[%emt 0:00:12]} 93. Kf1 {[%emt 0:00:10]} Rh2 {[%emt 0:00:00]} 94. Ra4+ {[%emt 0:00:22]} Kf3 {[%emt 0:00:37]} 95. Ra3+ {[%emt 0:00:30]} Kg4 {[%emt 0:00:00]} 96. Kg1 {[%emt 0:00:04]} Re2 {[%emt 0:00:00]} 97. Kf1 {[%emt 0:00:38]} Re4 {[%emt 0:00:26]} 98. Kf2 {[%emt 0:00:00]} Rb4 {[%emt 0:00:00]} 99. Rc3 {[%emt 0:00:12]} f3 {[%emt 0:00:42]} 100. Rc8 {[%emt 0:00:18]} Rb2+ {[%emt 0:00:05]} 101. Kf1 {[%emt 0:00:02]} Kf4 {[%emt 0:00:42]} 102. Rf8+ {[%emt 0:00:30]} Ke3 {[%emt 0:00:30]} 103. Re8+ {[%emt 0:00:00]} Kd4 {[%emt 0:00:00]} 104. Rd8+ {[%emt 0:00:00]} Ke5 {[%emt 0:00:24]} 105. Re8+ {[%emt 0:00:00]} Kd6 {[%emt 0:00:16]} 106. Rf8 {[%emt 0:00:00]} Rb3 {[%emt 0:00:38]} 107. Kf2 {[%emt 0:00:28]} Ke5 {[%emt 0:00:00]} 1/2-1/2